fUSD/lending_fUSD_20251101
["ID","MTS","AMOUNT","RATE_DAILY","PERIOD"]
[392801912,1761967288729,428.36,0.00011794,2]
[392801913,1761967288917,428.36,0.00012162,2]
[392801914,1761967289467,428.36,0.00012531,2]
[392801915,1761967289519,428.36,0.00012899,2]
[392801916,1761967289588,764.76,0.00030136,120]
[392801917,1761967289630,428.36,0.00013268,2]
[392801918,1761967291989,-195.0,0.00013636,2]
[392801919,1761967292673,-157.54725634,0.00013636,2]
[392801920,1761967318108,500.0,0.00030136,120]
[392801921,1761967328460,500.0,0.00030136,120]
[392801922,1761967332620,500.0,0.00030136,120]
[392801923,1761967333422,500.0,0.00030136,120]
[392801924,1761967337891,500.0,0.00030136,120]
[392801925,1761967341846,500.0,0.00030136,120]
[392801926,1761967342363,500.0,0.00030136,120]
[392801927,1761967345875,500.0,0.00030136,120]
[392801928,1761967346556,500.0,0.00030136,120]
[392801929,1761967351734,500.0,0.00030136,120]
[392801931,1761967354026,500.0,0.00030136,120]
[392801932,1761967359882,500.0,0.00030136,120]
[392801933,1761967364619,500.0,0.00030136,120]
[392801934,1761967374881,500.0,0.00030136,120]
[392801935,1761967379947,500.0,0.00030136,120]
[392801936,1761967382502,500.0,0.00030136,120]
[392801937,1761967384123,500.0,0.00030136,120]
[392801938,1761967386879,500.0,0.00030136,120]
[392801939,1761967387056,500.0,0.00030136,120]
[392801940,1761967393174,227.08817397,0.00030136,120]
[392801941,1761967397420,500.0,0.00030136,120]
[392801942,1761967399027,500.0,0.00030136,120]
[392801943,1761967411802,500.0,0.00030136,120]
[392801945,1761967473995,500.0,0.00030136,120]
[392801946,1761967484813,500.0,0.00030136,120]
[392801947,1761967487540,500.0,0.00030136,120]
[392801948,1761967494525,9502.0,0.00030137,120]
[392801949,1761967495689,500.0,0.00030136,120]
[392801950,1761967512238,500.0,0.00030136,120]
[392801951,1761967512527,508.1,0.00030136,120]
[392801952,1761967521133,500.0,0.00030136,120]
[392801953,1761967532745,500.0,0.00030136,120]
[392801954,1761967533318,500.0,0.00030136,120]
[392801955,1761967545255,500.0,0.00030136,120]
[392801956,1761967547746,500.0,0.00030136,120]
[392801957,1761967549775,500.0,0.00030136,120]
[392801958,1761967551912,500.0,0.00030136,120]
[392801959,1761967582515,500.0,0.00030136,120]
[392801960,1761967586774,500.0,0.00030136,120]
[392801961,1761967587039,500.0,0.00030136,120]
[392801962,1761967602229,-75.81274366,0.00013636,2]
[392801963,1761967602260,-195.0,0.00013713,2]
[392801964,1761967602288,-195.0,0.00013753,2]
[392801965,1761967602311,-187.63898956,0.00013789,2]
[392801966,1761967602333,-115.77289619,0.00013789,2]
[392801967,1761967608908,500.0,0.00030136,120]
[392801968,1761967624730,500.0,0.00030136,120]
[392801969,1761967627299,486608.56135464,0.00030136,120]
[392801970,1761967645465,500.0,0.00013,2]
[392801971,1761967646342,579.19523374,0.00013,2]
[392801972,1761967646416,500.0,0.00013,2]
[392801973,1761967646765,500.0,0.00013,2]
[392801974,1761967646806,500.0,0.00013,2]
[392801975,1761967646998,500.0,0.00013,2]
[392801976,1761967647095,500.0,0.00013,2]
[392801977,1761967647135,878.57435331,0.00012012,2]
[392801978,1761967647324,254.8313588,0.00013,2]
[392801979,1761967647352,245.1686412,0.00013,2]
[392801980,1761967647441,500.0,0.00013,2]
[392801981,1761967647689,716.6504134,0.00012012,2]
[392801982,1761967647746,500.0,0.00013,2]
[392801983,1761967647788,500.0,0.00013,2]
[392801984,1761967647944,500.0,0.00013,2]
[392801985,1761967648101,505.12178378,0.00012012,2]
[392801986,1761967648140,500.0,0.00013,2]
[392801987,1761967648263,500.60685629,0.00012012,2]
[392801988,1761967648484,500.0,0.00012012,2]
[392801989,1761967648848,500.0,0.00012012,2]
[392801990,1761967649196,500.0,0.00012012,2]
[392801991,1761967649254,333.43988971,0.00013,2]
[392801992,1761967649283,266.56011029,0.00013,2]
[392801993,1761967649347,500.0,0.00013,2]
[392801994,1761967649442,500.0,0.00013,2]
[392801995,1761967649552,500.0,0.00012012,2]
[392801996,1761967649622,600.0,0.00013,2]
[392801997,1761967649665,971.93881778,0.00012012,2]
[392801998,1761967649768,509.32199567,0.00012012,2]
[392801999,1761967649910,500.44383313,0.00013,2]
[392802000,1761967649954,999.83647912,0.00012012,2]
[392802001,1761967650002,152.75817742,0.00013,2]
[392802002,1761967650300,447.24182258,0.00013,2]
[392802003,1761967650397,600.0,0.00013,2]
[392802004,1761967650653,600.0,0.00013,2]
[392802005,1761967650981,600.0,0.00013,2]
[392802006,1761967651396,600.0,0.00013,2]
[392802007,1761967651706,600.0,0.00013,2]
[392802008,1761967651782,500.0,0.00013,2]
[392802009,1761967652050,600.0,0.00013,2]
[392802010,1761967652106,500.0,0.00013,2]
[392802011,1761967652388,600.0,0.00013,2]
[392802012,1761967652459,500.0,0.00012012,2]
[392802013,1761967652782,600.0,0.00013,2]
[392802014,1761967652831,834.87425931,0.00012012,2]
[392802015,1761967653108,600.0,0.00013,2]
[392802016,1761967653440,600.0,0.00013,2]
[392802017,1761967653806,600.0,0.00012012,2]
[392802018,1761967654163,600.0,0.00012012,2]
[392802019,1761967654511,600.0,0.00012012,2]
[392802020,1761967654819,600.0,0.00012012,2]
[392802021,1761967655157,600.0,0.00012012,2]
[392802022,1761967655496,600.0,0.00012012,2]
[392802023,1761967655848,600.0,0.00012012,2]
[392802024,1761967656217,600.0,0.00012012,2]
[392802025,1761967656575,600.0,0.00012012,2]
[392802026,1761967656903,600.0,0.00012012,2]
[392802027,1761967657245,600.0,0.00012012,2]
[392802028,1761967657598,600.0,0.00012012,2]
[392802029,1761967657956,857.42360473,0.00012012,2]
[392802036,1761967702416,-404.66772615,0.00013699,2]
[392802070,1761967831556,-222.30227385,0.00013699,2]
[392802071,1761967831569,-728.09495598,0.00013776,2]
[392802072,1761967831586,-1884.22710381,0.00013789,2]
[392802073,1761967831599,-205.88,0.00013789,2]
[392802074,1761967831611,-195.0,0.00013802,2]
[392802075,1761967831625,-300.0,0.00013802,2]
[392802076,1761967831637,-195.0,0.00013814,2]
[392802077,1761967831648,-610.0,0.00013881,2]
[392802078,1761967831660,-200.0,0.0001394,2]
[392802079,1761967831672,-150.0,0.00013952,2]
[392802080,1761967831683,-759.72447666,0.00013977,2]
[392802081,1761967831697,-440.27552334,0.00013977,2]
[392802082,1761967831708,-825.9,0.00013978,2]
[392802083,1761967831721,-428.36,0.00014005,2]
[392802084,1761967831733,-248.71531821,0.000141,2]
[392802085,1761967831746,-300.0,0.0001433,2]
[392802086,1761967831759,-150.0,0.00014331,2]
[392802087,1761967831771,-300.0,0.00014331,2]
[392802088,1761967831784,-359.0,0.00014332,2]
[392802089,1761967831796,-9999.99,0.00014332,2]
[392802090,1761967831808,-9999.99,0.00014332,2]
[392802091,1761967831819,-502.0,0.00014356,2]
[392802092,1761967831831,-57964.68164536,0.000145,2]
[392802094,1761967831842,-490.0,0.0001454,2]
[392802095,1761967831853,-476.65,0.00014541,2]
[392802096,1761967831863,-476.65,0.00014541,2]
[392802097,1761967831875,-5571.08,0.00014541,2]
[392802098,1761967831886,-150.99,0.00014541,2]
[392802100,1761967831897,-476.65,0.000146,2]
[392802103,1761967831909,-1009.0,0.000147,2]
[392802105,1761967831923,-1000.0,0.000147,2]
[392802107,1761967831937,-359.0,0.00014742,2]
[392802108,1761967831962,-289.0,0.00014745,2]
[392802109,1761967831978,-876.32,0.00014778,2]
[392802110,1761967831990,-1015.0,0.000148,2]
[392802112,1761967832002,-1203.06212,0.0001485,2]
[392802113,1761967832013,-155.09,0.00014863,2]
[392802114,1761967832024,-168.0,0.00014888,2]
[392802115,1761967832036,-281.7665765,0.000149,2]
[392802116,1761967832048,-1434.46444718,0.000149,2]
[392802117,1761967832062,-1535.0,0.000149,2]
[392802118,1761967832076,-2296.7639,0.000149,2]
[392802119,1761967832094,-811.02114903,0.000149,2]
[392802121,1761967832115,-186.64444341,0.000149,2]
[392802123,1761967832128,-555.68790926,0.000149,2]
[392802124,1761967832141,-158.0328201,0.000149,2]
[392802125,1761967832154,-362.56396836,0.000149,2]
[392802126,1761967832166,-168.0,0.00014948,2]
[392802127,1761967832181,-646.65982734,0.00014964,2]
[392802128,1761967832194,-151.0,0.00014964,2]
[392802129,1761967832208,-151.0,0.00014964,2]
[392802130,1761967832220,-151.0,0.00014964,2]
[392802131,1761967832236,-151.0,0.00014964,2]
[392802132,1761967832252,-151.0,0.00014964,2]
[392802133,1761967832267,-151.0,0.00014964,2]
[392802134,1761967832280,-151.0,0.00014964,2]
[392802135,1761967832292,-151.0,0.00014964,2]
[392802136,1761967832304,-151.0,0.00014964,2]
[392802137,1761967832317,-171.35667674,0.00014964,2]
[392802138,1761967832329,-151.0,0.00014964,2]
[392802139,1761967832342,-187.78006525,0.00014964,2]
[392802140,1761967832354,-514.84070869,0.00014964,2]
[392802141,1761967832368,-500.0,0.00014964,2]
[392802142,1761967832380,-500.0,0.00014964,2]
[392802143,1761967832392,-500.0,0.00014964,2]
[392802144,1761967832404,-500.0,0.00014964,2]
[392802145,1761967832416,-500.0,0.00014964,2]
[392802146,1761967832429,-500.0,0.00014964,2]
[392802147,1761967832440,-500.0,0.00014964,2]
[392802148,1761967832452,-322.6107,0.00014964,2]
[392802149,1761967832463,-500.0,0.00014973,2]
[392802150,1761967832475,-500.0,0.00014973,2]
[392802151,1761967832487,-500.0,0.00014973,2]
[392802152,1761967832499,-500.0,0.00014973,2]
[392802153,1761967832511,-608.06383578,0.00014973,2]
[392802154,1761967832523,-1203.06213,0.0001498,2]
[392802155,1761967832535,-174.84417298,0.0001499,2]
[392802156,1761967832547,-174.84417298,0.0001499,2]
[392802157,1761967832559,-174.84417298,0.0001499,2]
[392802158,1761967832571,-3436.71,0.00014997,2]
[392802159,1761967832583,-169.926,0.00014997,2]
[392802160,1761967832594,-151.0,0.00014997,2]
[392802161,1761967832606,-838.18,0.00014999,2]
[392802162,1761967832620,-167.39864793,0.00014999,2]
[392802163,1761967832631,-150.0,0.00014999,2]
[392802164,1761967832643,-299.69322678,0.00014999,2]
[392802165,1761967832654,-500.0,0.00014999,2]
[392802166,1761967832667,-421.0801478,0.00014999,2]
[392802167,1761967832679,-500.0,0.00014999,2]
[392802168,1761967832691,-537.39996435,0.00014999,2]
[392802169,1761967832702,-178.94180817,0.00014999,2]
[392802170,1761967832714,-412.52963432,0.00014999,2]
[392802171,1761967832725,-500.0,0.00014999,2]
[392802172,1761967832737,-552.6,0.00014999,2]
[392802173,1761967832748,-552.6,0.00014999,2]
[392802174,1761967832760,-552.6,0.00014999,2]
[392802175,1761967832771,-552.6,0.00014999,2]
[392802176,1761967832782,-552.6,0.00014999,2]
[392802177,1761967832794,-552.6,0.00014999,2]
[392802178,1761967832805,-552.6,0.00014999,2]
[392802179,1761967832817,-552.6,0.00014999,2]
[392802180,1761967832829,-242.29225255,0.00014999,2]
[392802181,1761967832841,-150.0,0.00014999,2]
[392802182,1761967832854,-152.43127205,0.00014999,2]
[392802183,1761967832866,-150.0,0.00014999,2]
[392802184,1761967832878,-150.0,0.00014999,2]
[392802185,1761967832890,-151.98744077,0.00014999,2]
[392802186,1761967832902,-150.0,0.00014999,2]
[392802187,1761967832914,-150.0,0.00014999,2]
[392802188,1761967832926,-150.0,0.00014999,2]
[392802189,1761967832937,-150.0,0.00014999,2]
[392802190,1761967832949,-150.0,0.00014999,2]
[392802191,1761967832960,-150.0,0.00014999,2]
[392802192,1761967832972,-150.0,0.00014999,2]
[392802193,1761967832983,-204.01087726,0.00014999,2]
[392802194,1761967832995,-500.0,0.00014999,2]
[392802195,1761967833006,-500.0,0.00014999,2]
[392802196,1761967833018,-150.0,0.00014999,2]
[392802197,1761967833029,-500.0,0.00014999,2]
[392802198,1761967833040,-150.0,0.00014999,2]
[392802199,1761967833051,-716.0,0.00014999,2]
[392802200,1761967833063,-3182.0,0.00015,2]
[392802201,1761967833074,-250.0,0.00015,2]
[392802202,1761967833085,-107496.6477991,0.00015,2]
[392802203,1761967833100,-840.82494719,0.00015,2]
[392802204,1761967833114,-8084.58288275,0.00015,2]
[392802205,1761967833127,-1367.74106718,0.00015,2]
[392802206,1761967833140,-344.81,0.00015,2]
[392802207,1761967833166,-2531.95584394,0.00015,2]
[392802208,1761967833179,-506.58,0.00015,2]
[392802209,1761967833192,-3233.04344077,0.00015,2]
[392802210,1761967833204,-2326.63949192,0.00015,2]
[392802211,1761967833216,-1603.77847889,0.00015,2]
[392802212,1761967837408,-1602327.72488183,0.00015,2]
[392802213,1761967837420,-866.52028193,0.00015,2]
[392802214,1761967837430,-153.152308,0.00015,2]
[392802215,1761967837442,-3196.6717318,0.00015,2]
[392802216,1761967837452,-291.27921974,0.00015,2]
[392802217,1761967837463,-12577.6687615,0.00015,2]
[392802218,1761967837473,-156768.43104,0.00015,2]
[392802219,1761967837484,-153.7851321,0.00015,2]
[392802220,1761967837495,-151.0,0.00015,2]
[392802221,1761967837506,-18643.018891,0.00015,2]
[392802222,1761967837516,-152.0,0.00015,2]
[392802223,1761967837527,-3385.8748026,0.00015,2]
[392802224,1761967837536,-50479.2731458,0.00015,2]
[392802225,1761967837547,-160.0,0.00015,2]
[392802226,1761967837557,-2725325.64501423,0.00015,2]
[392802227,1761967837570,-1754.46770805,0.00015,2]
[392802228,1761967837582,-1460.01378528,0.00015,2]
[392802229,1761967837599,-471.87366345,0.00015,2]
[392802230,1761967837612,-509.57715147,0.00015,2]
[392802231,1761967837625,-2548.26467723,0.00015,2]
[392802232,1761967837638,-9512.37871178,0.00015,2]
[392802233,1761967837651,-1374.5491995,0.00015,2]
[392802235,1761967837698,-8679.93775452,0.00015,2]
[392802236,1761967837710,-255.2082825,0.00015,2]
[392802240,1761967839629,-107433.05596174,0.00015,2]
[392802241,1761967839944,-3141.02330784,0.00015,2]
[392802245,1761967842548,-22195.81081934,0.00015,2]
[392802246,1761967842559,-115967.50846443,0.00015,2]
[392802247,1761967842571,-6855.90067227,0.00015,2]
[392802248,1761967842582,-1202.70410104,0.00015,2]
[392802249,1761967842593,-402.80055483,0.00015,2]
[392802250,1761967842665,-931.09196623,0.00015,2]
[392802251,1761967842764,-263.58446541,0.00015,2]
[392802254,1761967935375,500.0,0.00013,2]
[392802255,1761967935422,500.0,0.00013,2]
[392802256,1761967935709,500.0,0.00013,2]
[392802257,1761967935761,500.0,0.00013,2]
[392802258,1761967936107,500.0,0.00013,2]
[392802259,1761967936147,500.0,0.00013,2]
[392802260,1761967936436,500.0,0.00013,2]
[392802261,1761967936476,500.0,0.00013,2]
[392802262,1761967936599,500.0,0.00013,2]
[392802263,1761967936768,500.0,0.00012012,2]
[392802264,1761967936806,500.0,0.00013,2]
[392802265,1761967937124,500.0,0.00013,2]
[392802266,1761967937164,500.0,0.00013,2]
[392802267,1761967937206,500.0,0.00012012,2]
[392802268,1761967937470,500.0,0.00012012,2]
[392802269,1761967937513,653.71728033,0.00012012,2]
[392802270,1761967937557,500.0,0.00012012,2]
[392802271,1761967937824,569.78856614,0.00012012,2]
[392802272,1761967937866,500.0,0.00012012,2]
[392802273,1761967938217,500.0,0.00012012,2]
[392802274,1761967938567,500.0,0.00012012,2]
[392802275,1761967938934,662.82050434,0.00012012,2]
[392802276,1761967939464,500.0,0.00013,2]
[392802277,1761967939583,500.0,0.00013,2]
[392802278,1761967939713,438.35559121,0.00013,2]
[392802279,1761967939822,500.0,0.00013,2]
[392802280,1761967939949,708.54655983,0.00012012,2]
[392802281,1761967940159,500.0,0.00013,2]
[392802282,1761967940490,500.0,0.00013,2]
[392802283,1761967941019,500.0,0.00013,2]
[392802284,1761967941090,500.0,0.00013,2]
[392802285,1761967941185,500.0,0.00013,2]
[392802286,1761967941237,500.0,0.00013,2]
[392802287,1761967941300,500.0,0.00013,2]
[392802288,1761967941515,500.0,0.00013,2]
[392802289,1761967941825,500.0,0.00013,2]
[392802290,1761967941876,500.0,0.00012012,2]
[392802291,1761967941963,500.0,0.00013,2]
[392802292,1761967942195,500.0,0.00012012,2]
[392802293,1761967942329,500.0,0.00012012,2]
[392802294,1761967942508,500.0,0.00012012,2]
[392802295,1761967942673,500.0,0.00012012,2]
[392802296,1761967942840,500.0,0.00012012,2]
[392802297,1761967943034,500.0,0.00012012,2]
[392802298,1761967943191,500.0,0.00012012,2]
[392802299,1761967943367,678.32098825,0.00012012,2]
[392802300,1761967943565,789.73264971,0.00012012,2]
[392802301,1761967944768,500.0,0.00013,2]
[392802305,1761968003340,304.0,0.00013,2]
[392802325,1761968395977,999.0,0.0001383,3]
[392802328,1761968463375,151.0,0.00013,2]
[392802336,1761968709428,158.4525155,0.00013488,2]
[392802337,1761968709497,150.0,0.00013488,2]
[392802338,1761968714292,150.0,0.00013488,2]
[392802339,1761968716348,150.0,0.00013488,2]
[392802340,1761968716698,155.64407104,0.00013488,2]
[392802341,1761968720126,152.89870192,0.00013488,2]
[392802342,1761968729838,150.0,0.00013488,2]
[392802343,1761968730200,150.0,0.00013488,2]
[392802344,1761968763767,151.0,0.00013488,2]
[392802345,1761968764930,291.96686523,0.00013488,2]
[392802346,1761968960872,-467.80883646,0.00013718,2]
[392802347,1761968965886,-288.7100243,0.00013718,2]
[392802348,1761968967901,-269.37705323,0.00013718,2]
[392802357,1761969031664,-513.11,0.00013773,2]
[392802358,1761969031675,-250.0,0.00013787,2]
[392802359,1761969031690,-56.67286601,0.00013787,2]
[392802360,1761969031716,-138.32713399,0.00013787,2]
[392802361,1761969031726,-200.0,0.00013793,2]
[392802362,1761969031736,-300.0,0.00013805,2]
[392802363,1761969031747,-150.0,0.00013822,2]
[392802364,1761969031761,-1081.65794323,0.00013835,2]
[392802365,1761969031777,-1600.0,0.00013835,2]
[392802366,1761969031788,-20.21205677,0.00013835,2]
[392802367,1761969031798,-195.0,0.00013843,2]
[392802368,1761969031810,-170.16520936,0.00013852,2]
[392802369,1761969031820,-879.6351056,0.00014069,2]
[392802370,1761969031832,-120.3648944,0.00014069,2]
[392802371,1761969031842,-668.0,0.00014254,2]
[392802372,1761969031851,-668.0,0.00014258,2]
[392802373,1761969031861,-168.0,0.00014259,2]
[392802374,1761969031871,-1200.0,0.00014327,2]
[392802375,1761969031881,-300.0,0.00014327,2]
[392802376,1761969031891,-248.71531821,0.00014328,2]
[392802377,1761969031904,-9999.99,0.00014328,2]
[392802378,1761969031914,-150.99,0.00014328,2]
[392802379,1761969031923,-168.0,0.00014332,2]
[392802380,1761969031933,-367.0,0.00014409,2]
[392802382,1761969031943,-168.0,0.00014443,2]
[392802383,1761969031952,-168.0,0.00014451,2]
[392802384,1761969031962,-500.0,0.00014493,2]
[392802385,1761969031971,-353.08,0.000145,2]
[392802386,1761969031981,-1169.34,0.00014504,2]
[392802387,1761969031991,-3677.12,0.00014504,2]
[392802388,1761969032000,-168.0,0.00014556,2]
[392802389,1761969032010,-367.0,0.00014563,2]
[392802390,1761969032020,-168.0,0.00014672,2]
[392802391,1761969032030,-168.0,0.00014705,2]
[392802392,1761969032039,-1000.0,0.00014727,2]
[392802394,1761969032049,-1425.0,0.00014746,2]
[392802395,1761969032058,-1425.0,0.00014777,2]
[392802396,1761969032068,-494.32196578,0.00014777,2]
[392802397,1761969032077,-1425.0,0.00014801,2]
[392802398,1761969032087,-150.0,0.00014801,2]
[392802399,1761969032101,-930.24437324,0.00014803,2]
[392802400,1761969032111,-245.00704481,0.00014821,2]
[392802401,1761969032122,-1425.0,0.0001483,2]
[392802402,1761969032132,-1425.0,0.00014833,2]
[392802404,1761969032142,-1425.0,0.00014842,2]
[392802406,1761969032152,-1425.0,0.00014843,2]
[392802408,1761969032162,-1425.0,0.00014844,2]
[392802411,1761969032171,-202.83170012,0.00014851,2]
[392802413,1761969032182,-646.65982734,0.00014851,2]
[392802415,1761969032192,-151.0,0.00014851,2]
[392802417,1761969032202,-500.0,0.00014851,2]
[392802420,1761969032212,-151.0,0.00014851,2]
[392802422,1761969032221,-500.0,0.00014851,2]
[392802424,1761969032231,-151.0,0.00014851,2]
[392802426,1761969032241,-500.0,0.00014851,2]
[392802428,1761969032251,-151.0,0.00014851,2]
[392802430,1761969032261,-500.0,0.00014851,2]
[392802432,1761969032270,-151.0,0.00014851,2]
[392802434,1761969032280,-500.0,0.00014851,2]
[392802435,1761969032292,-151.0,0.00014851,2]
[392802436,1761969032301,-573.21060322,0.00014851,2]
[392802437,1761969032310,-151.0,0.00014851,2]
[392802438,1761969032320,-151.0,0.00014851,2]
[392802439,1761969032329,-151.0,0.00014851,2]
[392802440,1761969032339,-151.0,0.00014851,2]
[392802441,1761969032348,-151.0,0.00014851,2]
[392802442,1761969032358,-151.0,0.00014851,2]
[392802443,1761969032368,-151.0,0.00014851,2]
[392802444,1761969032377,-151.0,0.00014851,2]
[392802445,1761969032386,-151.0,0.00014851,2]
[392802446,1761969032395,-187.78006525,0.00014851,2]
[392802447,1761969032405,-151.0,0.00014851,2]
[392802448,1761969032414,-500.0,0.00014851,2]
[392802449,1761969032424,-500.0,0.00014851,2]
[392802450,1761969032434,-500.0,0.00014851,2]
[392802451,1761969032444,-500.0,0.00014851,2]
[392802452,1761969032453,-500.0,0.00014851,2]
[392802453,1761969032462,-514.84070869,0.00014851,2]
[392802454,1761969032472,-500.0,0.00014851,2]
[392802455,1761969032482,-500.0,0.00014851,2]
[392802456,1761969032491,-500.0,0.00014851,2]
[392802457,1761969032500,-500.0,0.00014851,2]
[392802458,1761969032510,-500.0,0.00014851,2]
[392802459,1761969032519,-152.12025337,0.00014851,2]
[392802460,1761969032528,-322.6107,0.00014851,2]
[392802461,1761969032538,-1000.0,0.00014855,2]
[392802462,1761969032548,-367.0,0.00014859,2]
[392802463,1761969032557,-1000.0,0.0001486,2]
[392802464,1761969032567,-50.48523113,0.0001486,2]
[392802465,1761969032579,-1374.51476887,0.0001486,2]
[392802466,1761969032589,-311.73,0.00014862,2]
[392802467,1761969032599,-1425.0,0.00014864,2]
[392802468,1761969032609,-500.0,0.00014873,2]
[392802469,1761969032620,-500.0,0.00014873,2]
[392802470,1761969032629,-502.79535886,0.00014873,2]
[392802471,1761969032639,-608.09553198,0.00014873,2]
[392802472,1761969032649,-500.0,0.00014873,2]
[392802473,1761969032659,-500.0,0.00014873,2]
[392802474,1761969032669,-163.51,0.0001488,2]
[392802475,1761969032679,-367.0,0.00014884,2]
[392802476,1761969032689,-1000.0,0.00014887,2]
[392802477,1761969032698,-5800.0,0.00014891,2]
[392802478,1761969032708,-18829.3655,0.000149,2]
[392802479,1761969032718,-198.89274234,0.000149,2]
[392802480,1761969032728,-5800.0,0.000149,2]
[392802481,1761969032737,-18022.42824251,0.000149,2]
[392802482,1761969032747,-1419.25333734,0.000149,2]
[392802483,1761969032762,-370.45860618,0.000149,2]
[392802484,1761969032772,-1425.0,0.00014902,2]
[392802485,1761969032782,-1000.0,0.00014933,2]
[392802486,1761969032792,-250.1122979,0.0001495,2]
[392802487,1761969032803,-160.39869693,0.00014973,2]
[392802488,1761969032813,-500.0,0.00014973,2]
[392802489,1761969032823,-513.86662868,0.00014973,2]
[392802490,1761969032835,-161.05344736,0.00014973,2]
[392802491,1761969032846,-500.0,0.00014973,2]
[392802492,1761969032856,-500.0,0.00014973,2]
[392802493,1761969032866,-504.69385614,0.00014973,2]
[392802494,1761969032876,-500.0,0.00014973,2]
[392802495,1761969032886,-500.94814899,0.00014973,2]
[392802496,1761969032896,-160.55425053,0.00014973,2]
[392802497,1761969032906,-500.0,0.00014973,2]
[392802498,1761969032915,-500.0,0.00014973,2]
[392802499,1761969032926,-501.03773553,0.00014973,2]
[392802500,1761969032936,-408.26589804,0.00014973,2]
[392802501,1761969032946,-500.66244439,0.00014973,2]
[392802502,1761969032955,-500.0,0.00014973,2]
[392802503,1761969032965,-229.1724615,0.00014973,2]
[392802504,1761969032975,-500.0,0.00014973,2]
[392802505,1761969032984,-500.53261373,0.00014973,2]
[392802506,1761969032994,-275.62057662,0.00014973,2]
[392802507,1761969033004,-167.23762462,0.00014973,2]
[392802508,1761969033014,-628.77882256,0.00014973,2]
[392802509,1761969033023,-501.90010209,0.00014973,2]
[392802510,1761969033033,-500.0,0.00014973,2]
[392802511,1761969033042,-501.58127789,0.00014973,2]
[392802512,1761969033052,-500.0,0.00014973,2]
[392802513,1761969033062,-502.54657018,0.00014973,2]
[392802514,1761969033073,-1000.0,0.00014974,2]
[392802515,1761969033083,-1000.0,0.00014979,2]
[392802516,1761969033092,-1000.0,0.00014982,2]
[392802517,1761969033102,-1000.0,0.00014983,2]
[392802518,1761969033112,-952.6,0.00014983,2]
[392802519,1761969033121,-150.00000001,0.00014986,2]
[392802520,1761969033131,-169.927,0.0001499,2]
[392802521,1761969033140,-2856.863,0.0001499,2]
[392802522,1761969033150,-299.27650638,0.0001499,2]
[392802523,1761969033160,-299.27650638,0.0001499,2]
[392802524,1761969033169,-299.27650638,0.0001499,2]
[392802525,1761969033179,-1425.0,0.00014993,2]
[392802526,1761969033188,-151.0,0.00014997,2]
[392802527,1761969033198,-1070.04302117,0.00014999,2]
[392802528,1761969033207,-500.0,0.00014999,2]